fUSD/lending_fUSD_20250111
["ID","MTS","AMOUNT","RATE_DAILY","PERIOD"]
[348556401,1736617879178,-1302.49,0.00012185,2]
[348556402,1736617879187,-1664.49,0.00012185,2]
[348556403,1736617879198,-500.0,0.00012185,2]
[348556404,1736617879207,-3892.88,0.00012185,2]
[348556405,1736617879218,-558.7,0.00012185,2]
[348556406,1736617879227,-500.0,0.00012185,2]
[348556407,1736617879237,-500.0,0.00012185,2]
[348556408,1736617879247,-500.0,0.00012185,2]
[348556409,1736617879256,-500.0,0.00012185,2]
[348556410,1736617879266,-500.0,0.00012185,2]
[348556411,1736617879276,-2250.27,0.00012185,2]
[348556412,1736617879286,-1806.59,0.00012185,2]
[348556413,1736617879296,-500.0,0.00012185,2]
[348556414,1736617879306,-500.0,0.00012185,2]
[348556415,1736617879315,-773.32,0.00012185,2]
[348556416,1736617879326,-534.65,0.00012185,2]
[348556417,1736617879336,-500.0,0.00012185,2]
[348556418,1736617879346,-500.0,0.00012185,2]
[348556419,1736617879356,-500.0,0.00012185,2]
[348556420,1736617879366,-2195.61,0.00012185,2]
[348556421,1736617879375,-860.77,0.00012185,2]
[348556422,1736617879384,-500.0,0.00012186,2]
[348556423,1736617879394,-1021.71,0.00012186,2]
[348556424,1736617879403,-613.88,0.00012186,2]
[348556425,1736617879412,-744.91,0.00012186,2]
[348556426,1736617879422,-500.0,0.00012186,2]
[348556427,1736617879432,-496.43,0.00012186,2]
[348556428,1736617879441,-500.0,0.00012186,2]
[348556429,1736617879451,-2246.3,0.00012186,2]
[348556430,1736617879461,-573.01908075,0.00012186,2]
[348556431,1736617879470,-1001.91,0.00012186,2]
[348556432,1736617879480,-587.01,0.00012186,2]
[348556433,1736617879490,-500.0,0.00012186,2]
[348556434,1736617879501,-500.0,0.00012186,2]
[348556435,1736617879511,-877.54,0.00012186,2]
[348556436,1736617879521,-500.0,0.00012186,2]
[348556437,1736617879530,-500.0,0.00012186,2]
[348556438,1736617879540,-500.0,0.00012186,2]
[348556439,1736617879550,-500.0,0.00012186,2]
[348556440,1736617879559,-500.0,0.00012186,2]
[348556441,1736617879568,-500.0,0.00012186,2]
[348556442,1736617879578,-507.55729089,0.00012186,2]
[348556443,1736617879587,-500.0,0.00012186,2]
[348556444,1736617879597,-1931.71,0.00012186,2]
[348556445,1736617879606,-500.0,0.00012186,2]
[348556446,1736617879615,-500.0,0.00012186,2]
[348556447,1736617879626,-750.82,0.00012186,2]
[348556448,1736617879635,-500.0,0.00012186,2]
[348556449,1736617879646,-500.0,0.00012186,2]
[348556450,1736617879656,-500.0,0.00012186,2]
[348556451,1736617879665,-500.0,0.00012186,2]
[348556452,1736617879674,-500.0,0.00012186,2]
[348556453,1736617879684,-500.0,0.00012186,2]
[348556454,1736617879695,-500.0,0.00012186,2]
[348556455,1736617879704,-2794.28,0.00012186,2]
[348556456,1736617879715,-161.54,0.00012186,2]
[348556457,1736617879724,-500.0,0.00012186,2]
[348556458,1736617879734,-500.0,0.00012186,2]
[348556459,1736617879744,-500.0,0.00012186,2]
[348556460,1736617879754,-500.0,0.00012186,2]
[348556461,1736617879765,-500.0,0.00012186,2]
[348556462,1736617879777,-500.0,0.00012186,2]
[348556463,1736617879788,-551.24383549,0.00012186,2]
[348556464,1736617879797,-500.0,0.00012186,2]
[348556465,1736617879807,-1556.78,0.00012186,2]
[348556466,1736617879816,-500.0,0.00012186,2]
[348556467,1736617879825,-500.0,0.00012186,2]
[348556468,1736617879835,-500.0,0.00012186,2]
[348556469,1736617879844,-500.0,0.00012186,2]
[348556470,1736617879854,-500.0,0.00012186,2]
[348556471,1736617879863,-500.0,0.00012186,2]
[348556472,1736617879872,-599.44,0.00012186,2]
[348556473,1736617879881,-1105.62,0.00012186,2]
[348556474,1736617879891,-500.0,0.00012186,2]
[348556475,1736617879900,-1707.208363,0.00012186,2]
[348556476,1736617879909,-500.0,0.00012186,2]
[348556477,1736617879919,-500.0,0.00012186,2]
[348556478,1736617879928,-500.0,0.00012186,2]
[348556479,1736617879937,-1824.135556,0.00012186,2]
[348556480,1736617879947,-500.0,0.00012186,2]
[348556481,1736617879958,-500.0,0.00012186,2]
[348556482,1736617879968,-500.0,0.00012186,2]
[348556483,1736617879977,-865.18,0.00012186,2]
[348556484,1736617879987,-500.0,0.00012186,2]
[348556485,1736617879997,-500.0,0.00012186,2]
[348556486,1736617880006,-500.0,0.00012186,2]
[348556487,1736617880015,-963.66,0.00012186,2]
[348556488,1736617880024,-500.0,0.00012186,2]
[348556489,1736617880033,-661.65,0.00012186,2]
[348556490,1736617880043,-794.24,0.00012186,2]
[348556491,1736617880052,-554.94,0.00012186,2]
[348556492,1736617880062,-500.0,0.00012186,2]
[348556493,1736617880072,-819.98,0.00012186,2]
[348556494,1736617880082,-500.0,0.00012186,2]
[348556495,1736617880092,-181.84860194,0.00012186,2]
[348556496,1736617880101,-500.0,0.00012186,2]
[348556497,1736617880111,-500.0,0.00012186,2]
[348556498,1736617880123,-500.0,0.00012186,2]
[348556499,1736617880132,-500.0,0.00012186,2]
[348556500,1736617880141,-500.0,0.00012186,2]
[348556501,1736617880151,-500.0,0.00012186,2]
[348556502,1736617880159,-500.0,0.00012186,2]
[348556503,1736617880168,-1013.28,0.00012186,2]
[348556504,1736617880178,-500.0,0.00012186,2]
[348556505,1736617880187,-486.36,0.00012186,2]
[348556506,1736617880197,-310.60039151,0.00012186,2]
[348556507,1736617880207,-500.0,0.00012186,2]
[348556508,1736617880217,-500.0,0.00012186,2]
[348556509,1736617880227,-3506.37,0.00012186,2]
[348556510,1736617880236,-500.0,0.00012186,2]
[348556511,1736617880245,-500.0,0.00012186,2]
[348556512,1736617880255,-520.05,0.00012186,2]
[348556513,1736617880263,-500.0,0.00012186,2]
[348556514,1736617880273,-500.0,0.00012186,2]
[348556515,1736617880282,-500.0,0.00012186,2]
[348556516,1736617880292,-500.0,0.00012186,2]
[348556517,1736617880301,-500.0,0.00012186,2]
[348556518,1736617880311,-500.0,0.00012186,2]
[348556519,1736617880320,-500.0,0.00012186,2]
[348556520,1736617880330,-500.0,0.00012186,2]
[348556521,1736617880340,-500.0,0.00012186,2]
[348556522,1736617880349,-460.36543242,0.00012186,2]
[348556523,1736617880358,-500.0,0.00012186,2]
[348556524,1736617880367,-500.0,0.00012186,2]
[348556525,1736617880377,-500.0,0.00012186,2]
[348556526,1736617880386,-1027.0,0.00012186,2]
[348556527,1736617880395,-500.0,0.00012186,2]
[348556528,1736617880405,-399.70354553,0.00012186,2]
[348556529,1736617880415,-500.0,0.00012186,2]
[348556530,1736617880424,-1025.27,0.00012186,2]
[348556531,1736617880433,-500.0,0.00012186,2]
[348556532,1736617880442,-500.0,0.00012186,2]
[348556533,1736617880452,-500.0,0.00012186,2]
[348556534,1736617880461,-500.0,0.00012186,2]
[348556535,1736617880471,-500.0,0.00012186,2]
[348556536,1736617880480,-500.0,0.00012186,2]
[348556537,1736617880490,-1076.09,0.00012186,2]
[348556538,1736617880499,-500.0,0.00012186,2]
[348556539,1736617880508,-500.0,0.00012186,2]
[348556540,1736617880519,-500.0,0.00012186,2]
[348556541,1736617880528,-527.18,0.00012186,2]
[348556542,1736617880539,-761.74,0.00012186,2]
[348556543,1736617880548,-500.0,0.00012186,2]
[348556544,1736617880558,-500.0,0.00012186,2]
[348556545,1736617880567,-500.0,0.00012186,2]
[348556546,1736617880576,-500.0,0.00012186,2]
[348556547,1736617880586,-500.0,0.00012186,2]
[348556548,1736617880597,-4845.51,0.00012186,2]
[348556549,1736617880607,-500.0,0.00012186,2]
[348556550,1736617880617,-611.72,0.00012186,2]
[348556551,1736617880627,-500.0,0.00012186,2]
[348556552,1736617880636,-500.0,0.00012186,2]
[348556553,1736617880646,-500.0,0.00012186,2]
[348556554,1736617880655,-500.0,0.00012186,2]
[348556555,1736617880664,-500.0,0.00012186,2]
[348556556,1736617880673,-500.0,0.00012186,2]
[348556557,1736617880683,-2193.11,0.00012186,2]
[348556558,1736617880692,-500.0,0.00012186,2]
[348556559,1736617880701,-500.0,0.00012186,2]
[348556560,1736617880711,-500.0,0.00012186,2]
[348556561,1736617880721,-500.0,0.00012186,2]
[348556562,1736617880731,-500.0,0.00012186,2]
[348556563,1736617880740,-883.7,0.00012186,2]
[348556564,1736617880749,-541.62,0.00012186,2]
[348556565,1736617880759,-500.0,0.00012186,2]
[348556566,1736617880905,-500.0,0.00012186,2]
[348556567,1736617880915,-584.87,0.00012186,2]
[348556568,1736617880926,-787.73,0.00012186,2]
[348556569,1736617880936,-500.0,0.00012186,2]
[348556570,1736617880946,-2678.35,0.00012186,2]
[348556571,1736617880956,-500.0,0.00012186,2]
[348556572,1736617880967,-500.0,0.00012186,2]
[348556573,1736617880977,-500.0,0.00012186,2]
[348556574,1736617880987,-721.21,0.00012186,2]
[348556575,1736617880996,-500.0,0.00012186,2]
[348556576,1736617881005,-500.0,0.00012186,2]
[348556577,1736617881014,-500.0,0.00012186,2]
[348556578,1736617881025,-1164.85,0.00012186,2]
[348556579,1736617881036,-2484.04,0.00012186,2]
[348556580,1736617881047,-500.0,0.00012186,2]
[348556581,1736617881058,-500.0,0.00012186,2]
[348556582,1736617881069,-500.0,0.00012186,2]
[348556583,1736617881080,-500.0,0.00012186,2]
[348556584,1736617881090,-243.51,0.00012186,2]
[348556585,1736617881100,-500.0,0.00012186,2]
[348556586,1736617881109,-500.0,0.00012186,2]
[348556587,1736617881121,-1265.58,0.00012186,2]
[348556588,1736617881131,-500.0,0.00012186,2]
[348556589,1736617881141,-500.0,0.00012186,2]
[348556590,1736617881151,-500.0,0.00012186,2]
[348556591,1736617881160,-500.0,0.00012186,2]
[348556592,1736617881172,-1332.14,0.00012186,2]
[348556593,1736617881182,-500.0,0.00012186,2]
[348556594,1736617881193,-1828.59,0.00012186,2]
[348556595,1736617881203,-500.0,0.00012186,2]
[348556596,1736617881214,-794.39,0.00012187,2]
[348556597,1736617881224,-1588.56,0.00012187,2]
[348556598,1736617881233,-1533.66,0.00012187,2]
[348556599,1736617881243,-1955.89,0.00012187,2]
[348556600,1736617881252,-1464.39,0.00012187,2]
[348556601,1736617881262,-500.0,0.00012187,2]
[348556602,1736617881271,-3508.34,0.00012187,2]
[348556603,1736617881281,-768.66,0.00012187,2]
[348556604,1736617881290,-1505.1,0.00012187,2]
[348556605,1736617881300,-1774.67,0.00012187,2]
[348556606,1736617881310,-947.84,0.00012187,2]
[348556607,1736617881319,-2918.92,0.00012187,2]
[348556608,1736617881329,-556.19,0.00012187,2]
[348556609,1736617881338,-748.0,0.00012187,2]
[348556610,1736617881347,-1833.81,0.00012187,2]
[348556611,1736617881357,-1344.8,0.00012187,2]
[348556612,1736617881367,-1225.11,0.00012187,2]
[348556613,1736617881376,-1479.59,0.00012187,2]
[348556614,1736617881386,-881.25,0.00012187,2]
[348556615,1736617881395,-879.29,0.00012187,2]
[348556616,1736617881405,-4216.48,0.00012187,2]
[348556617,1736617881414,-834.74,0.00012188,2]
[348556618,1736617881423,-173.0,0.00012188,2]
[348556619,1736617881432,-500.0,0.00012189,2]
[348556620,1736617881442,-500.0,0.00012189,2]
[348556621,1736617881451,-500.0,0.00012189,2]
[348556622,1736617881461,-1192.98,0.00012189,2]
[348556623,1736617881472,-170.10593626,0.0001219,2]
[348556624,1736617881481,-170.10593626,0.0001219,2]
[348556625,1736617881490,-170.10593626,0.0001219,2]
[348556626,1736617881499,-170.10593626,0.0001219,2]
[348556627,1736617881508,-170.10593626,0.0001219,2]
[348556628,1736617881517,-170.10593626,0.0001219,2]
[348556629,1736617881526,-170.10593626,0.0001219,2]
[348556630,1736617881535,-170.10593626,0.0001219,2]
[348556631,1736617881544,-170.10593626,0.0001219,2]
[348556632,1736617881553,-170.10593626,0.0001219,2]
[348556633,1736617881562,-170.10593626,0.0001219,2]
[348556634,1736617881571,-170.10593626,0.0001219,2]
[348556635,1736617881581,-170.10593626,0.0001219,2]
[348556636,1736617881590,-170.10593626,0.0001219,2]
[348556637,1736617881599,-170.10593626,0.0001219,2]
[348556638,1736617881608,-170.10593626,0.0001219,2]
[348556639,1736617881618,-170.10593626,0.0001219,2]
[348556640,1736617881627,-170.10593626,0.0001219,2]
[348556641,1736617881637,-170.10593626,0.0001219,2]
[348556642,1736617881646,-170.1,0.0001219,2]
[348556643,1736617881655,-819.29076316,0.0001219,2]
[348556644,1736617881665,-819.29076316,0.0001219,2]
[348556645,1736617881674,-819.29076316,0.0001219,2]
[348556646,1736617881683,-819.29076316,0.0001219,2]
[348556647,1736617881692,-819.29076316,0.0001219,2]
[348556648,1736617881702,-819.29076316,0.0001219,2]
[348556649,1736617881712,-819.29076316,0.0001219,2]
[348556650,1736617881722,-819.29076316,0.0001219,2]
[348556651,1736617881731,-819.29076316,0.0001219,2]
[348556652,1736617881740,-819.29076316,0.0001219,2]
[348556653,1736617881749,-819.29076316,0.0001219,2]
[348556654,1736617881758,-819.29076316,0.0001219,2]
[348556655,1736617881767,-819.29076316,0.0001219,2]
[348556656,1736617881776,-819.29076316,0.0001219,2]
[348556657,1736617881786,-819.29076316,0.0001219,2]
[348556658,1736617881796,-819.29076316,0.0001219,2]
[348556659,1736617881805,-819.29076316,0.0001219,2]
[348556660,1736617881814,-819.29076316,0.0001219,2]
[348556661,1736617881825,-819.29076316,0.0001219,2]
[348556662,1736617881834,-819.29,0.0001219,2]
[348556663,1736617881843,-9791.25,0.0001219,2]
[348556664,1736617881853,-1343.32,0.0001219,2]
[348556665,1736617881863,-500.0,0.0001219,2]
[348556666,1736617881872,-532.5,0.0001219,2]
[348556667,1736617881882,-2331.26,0.0001219,2]
[348556668,1736617881892,-500.0,0.0001219,2]
[348556669,1736617881902,-500.0,0.0001219,2]
[348556670,1736617881912,-971.27,0.0001219,2]
[348556671,1736617881921,-1299.71,0.0001219,2]
[348556672,1736617881931,-768.47,0.0001219,2]
[348556673,1736617881940,-2058.17,0.0001219,2]
[348556674,1736617881950,-1598.16,0.0001219,2]
[348556675,1736617881959,-374.01840675,0.00012191,2]
[348556676,1736617881969,-208.41655504,0.00012191,2]
[348556677,1736617881979,-337.6944502,0.00012192,2]
[348556678,1736617881988,-1260.1662853,0.00012192,2]
[348556679,1736617881998,-150.0,0.00012196,2]
[348556680,1736617882007,-150.0,0.00012197,2]
[348556681,1736617882017,-150.0,0.00012197,2]
[348556682,1736617882026,-150.0,0.00012199,2]
[348556683,1736617882035,-255.15890439,0.000122,2]
[348556684,1736617882044,-255.15890439,0.000122,2]
[348556685,1736617882054,-255.15890439,0.000122,2]
[348556686,1736617882064,-255.15890439,0.000122,2]
[348556687,1736617882074,-255.15890439,0.000122,2]
[348556688,1736617882084,-255.15890439,0.000122,2]
[348556689,1736617882093,-255.15890439,0.000122,2]
[348556690,1736617882103,-255.15890439,0.000122,2]
[348556691,1736617882112,-255.15890439,0.000122,2]
[348556692,1736617882123,-255.15890439,0.000122,2]
[348556693,1736617882133,-255.15890439,0.000122,2]
[348556694,1736617882142,-255.15890439,0.000122,2]
[348556695,1736617882151,-255.15890439,0.000122,2]
[348556696,1736617882160,-255.15890439,0.000122,2]
[348556697,1736617882169,-255.15890439,0.000122,2]
[348556698,1736617882179,-255.15890439,0.000122,2]
[348556699,1736617882188,-255.15890439,0.000122,2]
[348556700,1736617882196,-255.15890439,0.000122,2]
[348556701,1736617882205,-255.15890439,0.000122,2]
[348556702,1736617882216,-255.15,0.000122,2]
[348556703,1736617882226,-1228.93614474,0.000122,2]
[348556704,1736617882235,-1228.93614474,0.000122,2]
[348556705,1736617882244,-1228.93614474,0.000122,2]
[348556706,1736617882253,-1228.93614474,0.000122,2]
[348556707,1736617882262,-1228.93614474,0.000122,2]
[348556708,1736617882271,-1228.93614474,0.000122,2]
[348556709,1736617882280,-1228.93614474,0.000122,2]
[348556710,1736617882289,-1228.93614474,0.000122,2]
[348556711,1736617882298,-1228.93614474,0.000122,2]
[348556712,1736617882307,-1228.93614474,0.000122,2]
[348556713,1736617882316,-1228.93614474,0.000122,2]
[348556714,1736617882325,-1228.93614474,0.000122,2]
[348556715,1736617882335,-1228.93614474,0.000122,2]
[348556716,1736617882344,-1228.93614474,0.000122,2]
[348556717,1736617882353,-1228.93614474,0.000122,2]
[348556718,1736617882362,-1228.93614474,0.000122,2]
[348556719,1736617882371,-1228.93614474,0.000122,2]
[348556720,1736617882380,-1228.93614474,0.000122,2]
[348556721,1736617882389,-1228.93614474,0.000122,2]
[348556722,1736617882399,-1228.93,0.000122,2]
[348556723,1736617882408,-2292.70938766,0.000122,2]
[348556724,1736617882417,-78281.54034671,0.000122,3]
[348556725,1736617882427,-151.0,0.000122,2]
[348556726,1736617882437,-151.0,0.000122,2]
[348556727,1736617882446,-151.0,0.000122,2]
[348556728,1736617882455,-151.0,0.000122,2]
[348556729,1736617882466,-189.5494424,0.000122,2]
[348556730,1736617882475,-11132.85289693,0.000122,2]
[348556731,1736617882485,-184.53187083,0.000122,2]
[348556732,1736617882494,-181.78164221,0.000122,2]
[348556733,1736617882503,-45361.0,0.000122,2]
[348556734,1736617882512,-374.01840675,0.00012205,2]
[348556735,1736617882521,-208.41655504,0.00012205,2]
[348556736,1736617882530,-150.0,0.00012206,2]
[348556737,1736617882539,-734.03389695,0.0001221,2]
[348556738,1736617882548,-150.0,0.00012212,2]
[348556739,1736617882558,-374.01840675,0.00012218,2]
[348556740,1736617882567,-208.41655504,0.00012218,2]
[348556741,1736617882575,-150.0,0.00012224,2]
[348556742,1736617882584,-150.0,0.00012226,2]
[348556743,1736617882593,-374.01840675,0.00012232,2]
[348556744,1736617882602,-208.41655504,0.00012232,2]
[348556745,1736617882611,-823.0,0.00012233,2]
[348556746,1736617882620,-374.01840675,0.00012245,2]
[348556747,1736617882629,-208.41655504,0.00012245,2]
[348556748,1736617882638,-150.0,0.00012248,2]
[348556749,1736617882647,-10000.0,0.00012254,3]
[348556750,1736617882657,-374.01840675,0.00012259,2]
[348556751,1736617882665,-208.41655504,0.00012259,2]
[348556752,1736617882675,-150.0,0.00012263,2]
[348556753,1736617882684,-1500.0,0.00012271,2]
[348556754,1736617882693,-374.01840675,0.00012273,2]
[348556755,1736617882702,-150.0,0.00012273,2]
[348556756,1736617882712,-208.41655504,0.00012273,2]
[348556757,1736617882722,-734.03389695,0.00012279,2]
[348556758,1736617882732,-374.01840675,0.00012286,2]
[348556759,1736617882741,-208.41655504,0.00012286,2]
[348556760,1736617882750,-500.0,0.0001229,2]
[348556761,1736617882758,-641.36152909,0.00012292,2]
[348556762,1736617882767,-749.0791933,0.00012292,2]
[348556763,1736617882776,-749.0791933,0.00012292,2]
[348556764,1736617882786,-749.0791933,0.00012292,2]
[348556765,1736617882795,-749.0791933,0.00012292,2]
[348556766,1736617882804,-749.0791933,0.00012292,2]
[348556767,1736617882813,-749.0791933,0.00012292,2]
[348556768,1736617882823,-150.0621524,0.00012292,2]
[348556769,1736617882832,-150.0621524,0.00012292,2]
[348556770,1736617882841,-150.0621524,0.00012292,2]
[348556771,1736617882850,-150.0621524,0.00012292,2]
[348556772,1736617882859,-150.0621524,0.00012292,2]
[348556773,1736617882868,-150.0621524,0.00012292,2]
[348556774,1736617882877,-150.0,0.00012297,2]
[348556775,1736617882887,-1055.48808993,0.00012298,3]
[348556776,1736617882896,-509186.84797494,0.000123,4]
[348556777,1736617882905,-291792.17411304,0.000123,2]
[348556778,1736617883359,-12568.3837,0.000123,2]
[348556779,1736617883702,-500.0,0.00010541,2]
[348556780,1736617883712,-500.0,0.00010815,2]
[348556781,1736617883722,-1091.778,0.0001149,2]
[348556782,1736617883731,-9493.72186,0.000123,2]
[348556783,1736617883742,-707.3898016,0.000123,2]
[348556784,1736617883754,-1648.35,0.000123,2]
[348556785,1736617883783,-3904.6364026,0.000123,2]
[348556786,1736617883794,-3759.48788402,0.000123,2]
[348556787,1736617883806,-258226.78789676,0.000123,2]
[348556788,1736617883818,-2509.0,0.000123,2]
[348556789,1736617883829,-1877.48,0.000123,2]
[348556790,1736617883840,-188805.64220867,0.000123,2]
[348556791,1736617884209,-500.0,9.994e-05,2]
[348556792,1736617884218,-2019.64,9.997e-05,2]
[348556793,1736617884227,-500.0,0.00010268,2]
[348556794,1736617884236,-2019.64,0.00010271,2]
[348556795,1736617884245,-337784.95082343,0.000123,2]
[348556796,1736617884256,-122111.38458703,0.000123,2]
[348556797,1736617884282,-611.84743072,0.000123,2]
[348556798,1736617884295,-399.78581851,0.000123,2]
[348556799,1736617884307,-716.58271547,0.000123,2]
[348556800,1736617884319,-3243.21507756,0.000123,2]
[348556801,1736617884331,-250.41710891,0.000123,2]
[348556802,1736617884342,-3805.83049162,0.000123,2]
[348556803,1736617884353,-1718683.87105528,0.000123,2]
[348556804,1736617884364,-6769.25669112,0.000123,2]
[348556805,1736617920917,500.0,8.22e-05,2]
[348556806,1736617922023,700.0,8.22e-05,2]
[348556807,1736618062492,1028.59,8.219e-05,2]
[348556810,1736618629268,200.0,0.0002,120]
[348556824,1736619031957,-250.0,8.923e-05,2]
[348556825,1736619031966,-322.40590145,8.923e-05,2]
[348556826,1736619031976,-222.83496735,8.996e-05,2]
[348556827,1736619032054,-153.80503265,8.996e-05,2]
[348556828,1736619032063,-281.81,9.049e-05,2]
[348556829,1736619032073,-213.68,9.053e-05,2]
[348556830,1736619032082,-250.0,9.226e-05,2]
[348556831,1736619032091,-258.05,9.396e-05,2]
[348556832,1736619032100,-23900.0,9.477e-05,2]
[348556833,1736619032109,-9948.0,9.504e-05,2]
[348556834,1736619032119,-162.89,9.504e-05,2]
[348556835,1736619032128,-250.0,9.535e-05,2]
[348556836,1736619032137,-700.0,9.59e-05,2]
[348556837,1736619032147,-870.28,9.659e-05,2]
[348556838,1736619032156,-500.0,9.664e-05,2]
[348556839,1736619032166,-31506.1529,9.793e-05,2]
[348556840,1736619032175,-915.45462686,9.793e-05,2]
[348556841,1736619032184,-922.489821,9.793e-05,2]
[348556842,1736619032193,-220.2511,9.794e-05,2]
[348556843,1736619032203,-18223.3758,9.794e-05,2]
[348556844,1736619032212,-5000.0,9.794e-05,2]
[348556845,1736619032222,-240.52247391,9.873e-05,2]
[348556846,1736619032231,-500.0,9.892e-05,2]
[348556847,1736619032241,-866.93,9.892e-05,2]
[348556848,1736619032250,-226.7441,9.893e-05,2]
[348556849,1736619032261,-752.3184,9.893e-05,2]
[348556850,1736619032271,-500.0,9.893e-05,2]
[348556851,1736619032280,-500.0,9.893e-05,2]
[348556852,1736619032290,-500.0,9.893e-05,2]
[348556853,1736619032299,-500.0,9.893e-05,2]
[348556854,1736619032309,-501.09327668,9.893e-05,2]
[348556855,1736619032318,-500.0,9.893e-05,2]
[348556856,1736619032328,-500.0,9.893e-05,2]
[348556857,1736619032337,-500.0,9.893e-05,2]
[348556858,1736619032347,-500.0,9.893e-05,2]
[348556859,1736619032356,-500.0,9.893e-05,2]
[348556860,1736619032366,-500.0,9.893e-05,2]
[348556861,1736619032376,-500.0,9.893e-05,2]
[348556862,1736619032385,-500.0,9.893e-05,2]
[348556863,1736619032394,-500.77021444,9.893e-05,2]
[348556864,1736619032405,-500.0,9.893e-05,2]
[348556865,1736619032415,-531.67,9.893e-05,2]
[348556866,1736619032425,-500.0,9.893e-05,2]
[348556868,1736619032434,-500.0,9.893e-05,2]
[348556870,1736619032443,-500.0,9.893e-05,2]
[348556872,1736619032454,-500.0,9.893e-05,2]
[348556874,1736619032463,-500.0,9.893e-05,2]
[348556876,1736619032472,-500.0,9.893e-05,2]
[348556878,1736619032482,-500.0,9.893e-05,2]
[348556880,1736619032491,-169.85559469,9.893e-05,2]
[348556882,1736619032500,-500.0,9.893e-05,2]
[348556884,1736619032509,-500.0,9.893e-05,2]
[348556886,1736619032518,-500.0,9.893e-05,2]
[348556888,1736619032527,-500.0,9.893e-05,2]
[348556890,1736619032537,-500.0,9.893e-05,2]
[348556891,1736619032546,-500.0,9.893e-05,2]
[348556892,1736619032556,-500.0,9.893e-05,2]
[348556893,1736619032566,-500.0,9.893e-05,2]
[348556894,1736619032575,-500.0,9.893e-05,2]
[348556896,1736619032584,-500.0,9.893e-05,2]
[348556898,1736619032593,-500.0,9.893e-05,2]
[348556900,1736619032603,-500.0,9.893e-05,2]
[348556903,1736619032612,-500.0,9.893e-05,2]
[348556906,1736619032621,-500.0,9.893e-05,2]
[348556908,1736619032630,-500.0,9.893e-05,2]
[348556911,1736619032639,-500.0,9.893e-05,2]
[348556914,1736619032648,-500.0,9.893e-05,2]
[348556917,1736619032658,-556.85,9.893e-05,2]
[348556918,1736619032668,-500.0,9.893e-05,2]
[348556920,1736619032677,-502.87,9.893e-05,2]
[348556921,1736619032686,-500.0,9.893e-05,2]
[348556923,1736619032695,-500.0,9.893e-05,2]
[348556925,1736619032703,-500.0,9.893e-05,2]
[348556926,1736619032712,-500.0,9.893e-05,2]
[348556928,1736619032722,-500.66146786,9.893e-05,2]
[348556929,1736619032732,-500.0,9.893e-05,2]
[348556931,1736619032741,-500.0,9.893e-05,2]
[348556932,1736619032752,-500.0,9.893e-05,2]
[348556934,1736619032761,-500.33990254,9.893e-05,2]
[348556935,1736619032770,-500.0,9.893e-05,2]
[348556937,1736619032779,-500.0,9.893e-05,2]
[348556939,1736619032789,-500.0,9.893e-05,2]
[348556940,1736619032799,-500.0,9.893e-05,2]
[348556941,1736619032808,-500.0,9.893e-05,2]
[348556942,1736619032818,-500.0,9.893e-05,2]
[348556943,1736619032827,-500.0,9.893e-05,2]
[348556944,1736619032837,-500.0,9.893e-05,2]
[348556945,1736619032846,-500.0,9.893e-05,2]
[348556946,1736619032855,-500.0,9.893e-05,2]
[348556947,1736619032864,-160.18952003,9.893e-05,2]
[348556948,1736619032874,-500.0,9.893e-05,2]
[348556949,1736619032884,-682.71,9.893e-05,2]